fUSD/lending_fUSD_20240318
["ID","MTS","AMOUNT","RATE_DAILY","PERIOD"]
[319437355,1710736349005,-884.27,0.0003452,4]
[319437356,1710736349014,-500.0,0.0003452,4]
[319437357,1710736349023,-718.57,0.0003452,4]
[319437358,1710736349034,-500.0,0.0003452,4]
[319437359,1710736349044,-500.0,0.0003452,4]
[319437360,1710736349053,-626.44,0.0003452,4]
[319437361,1710736349063,-1481.56,0.0003452,4]
[319437362,1710736349072,-616.04,0.0003452,4]
[319437363,1710736349081,-820.19,0.0003452,4]
[319437364,1710736349091,-661.6,0.0003452,4]
[319437365,1710736349101,-807.78,0.0003452,4]
[319437366,1710736349110,-576.56,0.0003452,4]
[319437367,1710736349118,-500.0,0.0003452,4]
[319437368,1710736349128,-1258.08,0.0003452,4]
[319437369,1710736349137,-922.75,0.0003452,4]
[319437370,1710736349147,-500.0,0.0003452,4]
[319437371,1710736349157,-500.0,0.0003452,4]
[319437372,1710736349167,-1859.01,0.0003452,4]
[319437373,1710736349176,-998.14,0.0003452,4]
[319437374,1710736349185,-712.78,0.0003452,4]
[319437375,1710736349194,-3134.02,0.0003452,4]
[319437376,1710736349204,-720.74,0.0003452,4]
[319437377,1710736349213,-835.55,0.0003452,4]
[319437378,1710736349222,-794.41,0.0003452,4]
[319437379,1710736349232,-3743.94,0.0003452,4]
[319437380,1710736349241,-500.0,0.0003452,4]
[319437381,1710736349250,-642.05,0.0003452,4]
[319437382,1710736349259,-1113.65,0.0003452,4]
[319437383,1710736349272,-589.6,0.0003452,4]
[319437384,1710736349281,-633.04,0.0003452,4]
[319437385,1710736349291,-512.73,0.0003452,4]
[319437386,1710736349303,-774.64,0.0003452,4]
[319437387,1710736349312,-1524.04,0.0003452,4]
[319437388,1710736349321,-1898.65,0.0003452,4]
[319437389,1710736349330,-1586.83,0.0003452,4]
[319437390,1710736349339,-579.89757858,0.0003452,4]
[319437391,1710736349349,-833.34,0.0003452,4]
[319437392,1710736349358,-1329.2,0.0003452,4]
[319437393,1710736349368,-500.0,0.0003452,4]
[319437394,1710736349378,-574.74,0.0003452,4]
[319437395,1710736349388,-501.93,0.0003452,4]
[319437396,1710736349397,-899.79,0.0003452,4]
[319437397,1710736349406,-500.0,0.0003452,4]
[319437398,1710736349416,-836.63,0.0003452,4]
[319437399,1710736349426,-663.74,0.0003452,4]
[319437400,1710736349436,-1143.03,0.0003452,4]
[319437401,1710736349445,-1917.2,0.0003452,4]
[319437402,1710736349455,-1716.33,0.0003452,4]
[319437403,1710736349464,-1304.54,0.0003452,4]
[319437404,1710736349473,-500.0,0.0003452,4]
[319437405,1710736349483,-705.47,0.0003452,4]
[319437406,1710736349493,-794.56,0.0003452,4]
[319437407,1710736349502,-588.98,0.0003452,4]
[319437408,1710736349511,-560.65,0.0003452,4]
[319437409,1710736349520,-2333.6,0.0003452,4]
[319437410,1710736349529,-1061.17,0.0003452,4]
[319437411,1710736349539,-758.7,0.0003452,4]
[319437412,1710736349554,-1095.12,0.0003452,4]
[319437413,1710736349563,-2145.95,0.0003452,4]
[319437414,1710736349572,-1627.27,0.0003452,4]
[319437415,1710736349581,-492.44,0.0003452,4]
[319437416,1710736349590,-500.0,0.0003452,4]
[319437417,1710736349599,-2012.26,0.0003452,4]
[319437418,1710736349609,-1352.76,0.0003452,4]
[319437419,1710736349619,-190.0,0.0003452,2]
[319437420,1710736349629,-537.95,0.0003452,4]
[319437421,1710736349638,-300.53125931,0.0003452,4]
[319437422,1710736349647,-2747.25,0.0003452,4]
[319437423,1710736349657,-606.33,0.0003452,4]
[319437424,1710736349666,-500.0,0.0003452,4]
[319437425,1710736349677,-500.0,0.0003452,4]
[319437426,1710736349687,-554.01,0.0003452,4]
[319437427,1710736349696,-807.58,0.0003452,4]
[319437428,1710736349706,-2956.82,0.0003452,4]
[319437429,1710736349716,-404.53840934,0.0003452,4]
[319437430,1710736349726,-500.0,0.0003452,4]
[319437431,1710736349735,-500.0,0.0003452,4]
[319437432,1710736349745,-1607.18,0.0003452,4]
[319437433,1710736349756,-1221.54,0.0003452,4]
[319437434,1710736349768,-1838.23,0.0003452,4]
[319437435,1710736349778,-1026.01,0.0003452,4]
[319437436,1710736349787,-842.1,0.0003452,4]
[319437437,1710736349799,-512.31,0.0003452,4]
[319437438,1710736349808,-500.0,0.0003452,4]
[319437439,1710736349817,-831.26,0.0003452,4]
[319437440,1710736349826,-1448.23,0.0003452,4]
[319437441,1710736349835,-1157.32,0.0003452,4]
[319437442,1710736349845,-556.38,0.0003452,4]
[319437443,1710736349855,-1287.24,0.0003452,4]
[319437444,1710736349865,-1436.69,0.0003452,4]
[319437445,1710736349876,-1335.54,0.0003452,4]
[319437446,1710736349885,-500.0,0.0003452,4]
[319437447,1710736349895,-1968.76,0.0003452,4]
[319437448,1710736349905,-799.94,0.0003452,4]
[319437449,1710736349914,-1597.09,0.0003452,4]
[319437450,1710736349923,-386.37399164,0.0003452,4]
[319437451,1710736349932,-500.0,0.0003452,4]
[319437452,1710736349942,-500.0,0.0003452,4]
[319437453,1710736349951,-632.08,0.0003452,4]
[319437454,1710736349960,-681.46,0.0003452,4]
[319437455,1710736349969,-1138.91,0.0003452,4]
[319437456,1710736349979,-1427.1,0.0003452,4]
[319437457,1710736349989,-500.0,0.0003452,4]
[319437458,1710736349998,-809.76,0.0003452,4]
[319437459,1710736350008,-1229.86,0.0003452,4]
[319437460,1710736350017,-691.68,0.0003452,4]
[319437461,1710736350026,-2635.68,0.0003452,4]
[319437462,1710736350035,-500.0,0.0003452,4]
[319437463,1710736350045,-500.0,0.0003452,4]
[319437464,1710736350054,-500.0,0.0003452,4]
[319437465,1710736350063,-788.73,0.0003452,4]
[319437466,1710736350073,-500.0,0.0003452,4]
[319437467,1710736350082,-500.0,0.0003452,4]
[319437468,1710736350091,-2115.38,0.0003452,4]
[319437469,1710736350100,-500.0,0.0003452,4]
[319437470,1710736350110,-1520.72,0.0003452,4]
[319437471,1710736350119,-1607.09,0.0003452,4]
[319437472,1710736350128,-301.13920808,0.0003452,4]
[319437473,1710736350138,-500.0,0.0003452,4]
[319437474,1710736350147,-1832.55,0.0003452,4]
[319437475,1710736350156,-824.57,0.0003452,4]
[319437476,1710736350165,-1581.71,0.0003452,4]
[319437477,1710736350175,-583.42,0.0003452,4]
[319437478,1710736350185,-1212.73,0.0003452,4]
[319437479,1710736350194,-1404.3,0.0003452,4]
[319437480,1710736350204,-24025.87,0.0003452,4]
[319437481,1710736350214,-500.0,0.0003452,4]
[319437482,1710736350223,-2546.72,0.0003452,4]
[319437483,1710736350233,-2851.25,0.0003452,4]
[319437484,1710736350242,-2287.3,0.0003452,4]
[319437485,1710736350251,-647.58,0.0003452,4]
[319437486,1710736350261,-500.0,0.0003452,4]
[319437487,1710736350271,-585.33,0.0003452,4]
[319437488,1710736350281,-1053.54,0.0003452,4]
[319437489,1710736350290,-1503.64,0.0003452,4]
[319437490,1710736350300,-1183.08,0.0003452,4]
[319437491,1710736350310,-554.14,0.0003452,4]
[319437492,1710736350319,-2122.6,0.0003452,4]
[319437493,1710736350328,-500.0,0.0003452,4]
[319437494,1710736350337,-513.85,0.0003452,4]
[319437495,1710736350347,-1088.26,0.0003452,4]
[319437496,1710736350356,-1355.29,0.0003452,4]
[319437497,1710736350366,-1081.54,0.0003452,4]
[319437498,1710736350376,-602.31,0.0003452,4]
[319437499,1710736350385,-16800.01,0.0003452,4]
[319437500,1710736350394,-732.67,0.0003452,4]
[319437501,1710736350404,-500.0,0.0003452,4]
[319437502,1710736350413,-742.96,0.0003452,4]
[319437503,1710736350423,-875.28,0.0003452,4]
[319437504,1710736350433,-1382.05,0.0003452,4]
[319437505,1710736350443,-9617.26,0.0003452,4]
[319437506,1710736350453,-632.75,0.0003452,4]
[319437507,1710736350462,-523.3,0.0003452,4]
[319437508,1710736350472,-9955.07,0.0003452,4]
[319437509,1710736350481,-1242.28,0.0003452,4]
[319437510,1710736350490,-815.39,0.0003452,4]
[319437511,1710736350499,-606.68,0.0003452,4]
[319437512,1710736350510,-2827.35,0.0003452,4]
[319437513,1710736350519,-643.72421549,0.0003452,4]
[319437514,1710736350529,-584.4,0.0003452,4]
[319437515,1710736350538,-2844.9,0.0003452,4]
[319437516,1710736350548,-918.65,0.0003452,4]
[319437517,1710736350558,-2329.09,0.0003452,4]
[319437518,1710736350567,-2657.41,0.0003452,4]
[319437519,1710736350576,-500.0,0.0003452,4]
[319437520,1710736350585,-5715.22,0.0003452,4]
[319437521,1710736350594,-1178.39,0.0003452,4]
[319437522,1710736350603,-1030.3,0.0003452,4]
[319437523,1710736350612,-7010.64,0.0003452,4]
[319437524,1710736350621,-795.31,0.0003452,4]
[319437525,1710736350630,-647.9,0.0003452,4]
[319437526,1710736350639,-756.1,0.0003452,4]
[319437527,1710736350648,-500.0,0.0003452,4]
[319437528,1710736350657,-1213.71,0.0003452,4]
[319437529,1710736350666,-3112.49,0.0003452,4]
[319437530,1710736350675,-16099.23,0.0003452,4]
[319437531,1710736350684,-1067.48,0.0003452,4]
[319437532,1710736350693,-1085.99,0.0003452,4]
[319437533,1710736350702,-500.0,0.0003452,4]
[319437534,1710736350711,-7279.53,0.0003452,4]
[319437535,1710736350720,-500.0,0.0003452,4]
[319437536,1710736350730,-3639.26,0.0003452,4]
[319437537,1710736350739,-4937.08,0.0003452,4]
[319437538,1710736350749,-14656.9,0.0003452,4]
[319437539,1710736350758,-500.0,0.0003452,4]
[319437540,1710736350771,-1119.07,0.0003452,4]
[319437541,1710736350781,-714.97,0.0003452,4]
[319437542,1710736350790,-3778.15,0.0003452,4]
[319437543,1710736350800,-2442.22,0.0003452,4]
[319437544,1710736350809,-915.55,0.0003452,4]
[319437545,1710736350818,-500.0,0.0003452,4]
[319437546,1710736350827,-2039.35,0.0003452,4]
[319437547,1710736350837,-1590.31,0.0003452,4]
[319437548,1710736350846,-2078.76,0.0003452,4]
[319437549,1710736350856,-765.76,0.0003452,4]
[319437550,1710736350865,-2024.35,0.0003452,4]
[319437551,1710736350874,-500.0,0.0003452,4]
[319437552,1710736350884,-150.0,0.00034542,7]
[319437553,1710736350893,-150.0,0.00034548,10]
[319437554,1710736350903,-812.0,0.000346,23]
[319437555,1710736350912,-150.0,0.00034653,7]
[319437556,1710736350922,-1006.74,0.0003466,2]
[319437557,1710736350932,-376.98,0.0003468,2]
[319437558,1710736350942,-150.0,0.00034702,7]
[319437559,1710736350951,-156.19687461,0.0003474,30]
[319437560,1710736350961,-150.0,0.00034764,7]
[319437561,1710736350970,-152.0,0.00034793,10]
[319437562,1710736350980,-150.0,0.00034794,7]
[319437563,1710736350990,-253.83974158,0.00034794,4]
[319437564,1710736350999,-500.0,0.00034794,4]
[319437565,1710736351009,-892.35,0.00034794,4]
[319437566,1710736351018,-588.99,0.00034794,4]
[319437567,1710736351028,-500.0,0.00034794,4]
[319437568,1710736351037,-500.0,0.00034794,4]
[319437569,1710736351047,-500.0,0.00034794,4]
[319437570,1710736351056,-752.67,0.00034794,4]
[319437571,1710736351066,-492.93855157,0.00034794,4]
[319437572,1710736351075,-869.9,0.00034794,4]
[319437573,1710736351084,-500.0,0.00034794,4]
[319437574,1710736351094,-1373.45,0.00034794,4]
[319437575,1710736351104,-536.23,0.00034794,4]
[319437576,1710736351113,-1105.28,0.00034794,4]
[319437577,1710736351122,-622.18,0.00034794,4]
[319437578,1710736351131,-501.4,0.00034794,4]
[319437579,1710736351141,-2231.25,0.00034794,4]
[319437580,1710736351150,-735.9,0.00034794,4]
[319437581,1710736351160,-500.0,0.00034794,4]
[319437582,1710736351170,-500.0,0.00034794,4]
[319437583,1710736351179,-943.04,0.00034794,4]
[319437584,1710736351189,-503.91,0.00034794,4]
[319437585,1710736351198,-1566.14,0.00034794,4]
[319437586,1710736351207,-500.0,0.00034794,4]
[319437587,1710736351217,-500.0,0.00034794,4]
[319437588,1710736351226,-507.78,0.00034794,4]
[319437589,1710736351236,-298.23563937,0.00034794,4]
[319437590,1710736351245,-186.27842388,0.00034794,4]
[319437591,1710736351254,-832.17,0.00034794,4]
[319437592,1710736351264,-1123.76,0.00034794,4]
[319437593,1710736351274,-600.34,0.00034794,4]
[319437594,1710736351283,-710.22,0.00034794,4]
[319437595,1710736351292,-1438.95,0.00034794,4]
[319437596,1710736351304,-1027.19,0.00034794,4]
[319437597,1710736351314,-500.0,0.00034794,4]
[319437598,1710736351323,-624.55,0.00034794,4]
[319437599,1710736351333,-595.77,0.00034794,4]
[319437600,1710736351342,-1826.25,0.00034794,4]
[319437601,1710736351352,-931.82,0.00034794,4]
[319437602,1710736351361,-2156.89,0.00034794,4]
[319437603,1710736351370,-626.3,0.00034794,4]
[319437604,1710736351380,-2005.2,0.00034794,4]
[319437605,1710736351389,-500.0,0.00034794,4]
[319437606,1710736351399,-2463.3,0.00034794,4]
[319437607,1710736351408,-2094.29,0.00034794,4]
[319437608,1710736351417,-911.56,0.00034794,4]
[319437609,1710736351427,-500.0,0.00034794,4]
[319437610,1710736351436,-2639.58,0.00034794,4]
[319437611,1710736351446,-500.0,0.00034794,4]
[319437612,1710736351455,-3465.75,0.00034794,4]
[319437613,1710736351465,-523.09,0.00034794,4]
[319437614,1710736351475,-1239.79,0.00034794,4]
[319437615,1710736351484,-500.0,0.00034794,4]
[319437616,1710736351493,-3439.16,0.00034794,4]
[319437617,1710736351503,-865.02,0.00034794,4]
[319437618,1710736351512,-770.0,0.00034794,4]
[319437619,1710736351522,-1050.75,0.00034794,4]
[319437620,1710736351531,-639.93,0.00034794,4]
[319437621,1710736351540,-3922.62,0.00034794,4]
[319437622,1710736351552,-953.43,0.00034794,4]
[319437623,1710736351561,-611.87,0.00034794,4]
[319437624,1710736351570,-798.65,0.00034794,4]
[319437625,1710736351580,-500.0,0.00034794,4]
[319437626,1710736351589,-2710.57,0.00034794,4]
[319437627,1710736351599,-2948.74,0.00034794,4]
[319437628,1710736351608,-500.0,0.00034794,4]
[319437629,1710736351618,-539.71,0.00034794,4]
[319437630,1710736351627,-500.0,0.00034794,4]
[319437631,1710736351636,-500.0,0.00034794,4]
[319437632,1710736351646,-500.0,0.00034794,4]
[319437633,1710736351656,-1200.43,0.00034794,4]
[319437634,1710736351665,-500.0,0.00034794,4]
[319437635,1710736351675,-500.0,0.00034794,4]
[319437636,1710736351684,-500.0,0.00034794,4]
[319437637,1710736351694,-646.93,0.00034794,4]
[319437638,1710736351703,-593.8,0.00034794,4]
[319437639,1710736351713,-3040.38,0.00034794,4]
[319437640,1710736351722,-912.86,0.00034794,4]
[319437641,1710736351731,-521.56,0.00034794,4]
[319437642,1710736351741,-2075.71,0.00034794,4]
[319437643,1710736351752,-1026.81,0.00034794,4]
[319437644,1710736351762,-788.56,0.00034794,4]
[319437645,1710736351772,-500.0,0.00034794,4]
[319437646,1710736351781,-615.18,0.00034794,4]
[319437647,1710736351791,-500.0,0.00034794,4]
[319437648,1710736351802,-1506.09,0.00034794,4]
[319437649,1710736351811,-500.0,0.00034794,4]
[319437650,1710736351822,-1442.43,0.00034794,4]
[319437651,1710736351831,-4584.29,0.00034794,4]
[319437652,1710736351842,-1419.83,0.00034794,4]
[319437653,1710736351853,-1416.16,0.00034794,4]
[319437654,1710736351863,-1501.08,0.00034794,4]
[319437655,1710736351873,-1326.91,0.00034794,4]
[319437656,1710736351882,-1157.88,0.00034794,4]
[319437657,1710736351892,-500.0,0.00034794,4]
[319437658,1710736351902,-522.83,0.00034794,4]
[319437659,1710736351912,-1901.89,0.00034794,4]
[319437660,1710736351921,-884.27,0.00034794,4]
[319437661,1710736351931,-500.0,0.00034794,4]
[319437662,1710736351942,-718.57,0.00034794,4]
[319437663,1710736351952,-500.0,0.00034794,4]
[319437664,1710736351962,-500.0,0.00034794,4]
[319437665,1710736351972,-626.44,0.00034794,4]
[319437666,1710736351982,-1481.56,0.00034794,4]
[319437667,1710736351992,-616.04,0.00034794,4]
[319437668,1710736352003,-820.19,0.00034794,4]
[319437669,1710736352013,-661.6,0.00034794,4]
[319437670,1710736352023,-807.78,0.00034794,4]
[319437671,1710736352033,-576.56,0.00034794,4]
[319437672,1710736352043,-500.0,0.00034794,4]
[319437673,1710736352055,-1258.08,0.00034794,4]
[319437674,1710736352065,-922.75,0.00034794,4]
[319437675,1710736352075,-500.0,0.00034794,4]
[319437676,1710736352085,-254.9828098,0.00034794,4]
[319437677,1710736352095,-1859.01,0.00034794,4]
[319437678,1710736352105,-998.14,0.00034794,4]
[319437679,1710736352115,-712.78,0.00034794,4]
[319437680,1710736352124,-3134.02,0.00034794,4]
[319437681,1710736352134,-720.74,0.00034794,4]
[319437682,1710736352144,-835.55,0.00034794,4]
[319437683,1710736352154,-794.41,0.00034794,4]
[319437684,1710736352163,-3743.94,0.00034794,4]
[319437685,1710736352174,-338.18446568,0.00034794,4]
[319437686,1710736352183,-642.05,0.00034794,4]
[319437687,1710736352193,-1113.65,0.00034794,4]
[319437688,1710736352203,-589.6,0.00034794,4]
[319437689,1710736352212,-633.04,0.00034794,4]
[319437690,1710736352222,-512.73,0.00034794,4]
[319437691,1710736352231,-774.64,0.00034794,4]
[319437692,1710736352241,-1524.04,0.00034794,4]
[319437693,1710736352251,-1898.65,0.00034794,4]
[319437694,1710736352261,-1586.83,0.00034794,4]
[319437695,1710736352270,-833.34,0.00034794,4]
[319437696,1710736352279,-1329.2,0.00034794,4]
[319437697,1710736352289,-260.71017553,0.00034794,4]
[319437698,1710736352299,-574.74,0.00034794,4]
[319437699,1710736352309,-501.93,0.00034794,4]
[319437700,1710736352319,-899.79,0.00034794,4]
[319437701,1710736352329,-228.9692874,0.00034794,4]
[319437702,1710736352338,-836.63,0.00034794,4]
[319437703,1710736352348,-663.74,0.00034794,4]
[319437704,1710736352358,-1143.03,0.00034794,4]
[319437705,1710736352368,-1917.2,0.00034794,4]
[319437706,1710736352378,-1716.33,0.00034794,4]
[319437707,1710736352387,-1304.54,0.00034794,4]
[319437708,1710736352398,-500.0,0.00034794,4]
[319437709,1710736352409,-705.47,0.00034794,4]
[319437710,1710736352419,-794.56,0.00034794,4]
[319437711,1710736352428,-588.98,0.00034794,4]
[319437712,1710736352437,-2333.6,0.00034794,4]
[319437713,1710736352447,-560.65,0.00034794,4]
[319437714,1710736352456,-1061.17,0.00034794,4]
[319437715,1710736352466,-758.7,0.00034794,4]
[319437716,1710736352475,-1095.12,0.00034794,4]
[319437717,1710736352485,-2145.95,0.00034794,4]
[319437718,1710736352494,-1627.27,0.00034794,4]
[319437719,1710736352503,-500.0,0.00034794,4]
[319437720,1710736352512,-2012.26,0.00034794,4]
[319437721,1710736352521,-1352.76,0.00034794,4]
[319437722,1710736352531,-537.95,0.00034794,4]
[319437723,1710736352540,-2747.25,0.00034794,4]
[319437724,1710736352551,-606.33,0.00034794,4]
[319437725,1710736352560,-512.23015752,0.00034794,4]
[319437726,1710736352570,-381.74006735,0.00034794,4]
[319437727,1710736352579,-554.01,0.00034794,4]
[319437728,1710736352590,-807.58,0.00034794,4]
[319437729,1710736352600,-2956.82,0.00034794,4]
[319437730,1710736352610,-500.0,0.00034794,4]
[319437731,1710736352619,-500.0,0.00034794,4]
[319437732,1710736352629,-1607.18,0.00034794,4]
[319437733,1710736352639,-1221.54,0.00034794,4]
[319437734,1710736352648,-1838.23,0.00034794,4]
[319437735,1710736352658,-1026.01,0.00034794,4]
[319437736,1710736352667,-842.1,0.00034794,4]
[319437737,1710736352677,-512.31,0.00034794,4]
[319437738,1710736352686,-500.0,0.00034794,4]
[319437739,1710736352695,-831.26,0.00034794,4]
[319437740,1710736352705,-1448.23,0.00034794,4]
[319437741,1710736352714,-1157.32,0.00034794,4]
[319437742,1710736352724,-556.38,0.00034794,4]
[319437743,1710736352733,-1287.24,0.00034794,4]
[319437744,1710736352743,-1436.69,0.00034794,4]
[319437745,1710736352754,-1335.54,0.00034794,4]
[319437746,1710736352767,-500.0,0.00034794,4]
[319437747,1710736352777,-1968.76,0.00034794,4]
[319437748,1710736352787,-799.94,0.00034794,4]
[319437749,1710736352797,-1597.09,0.00034794,4]
[319437750,1710736352806,-500.0,0.00034794,4]
[319437751,1710736352816,-632.08,0.00034794,4]
[319437752,1710736352825,-681.46,0.00034794,4]
[319437753,1710736352835,-1138.91,0.00034794,4]
[319437754,1710736352845,-1427.1,0.00034794,4]
[319437755,1710736352855,-500.0,0.00034794,4]
[319437756,1710736352865,-809.76,0.00034794,4]
[319437757,1710736352874,-1229.86,0.00034794,4]
[319437758,1710736352884,-691.68,0.00034794,4]
[319437759,1710736352894,-2635.68,0.00034794,4]
[319437760,1710736353147,-500.0,0.00034794,4]
[319437761,1710736353157,-500.0,0.00034794,4]
[319437762,1710736353166,-500.0,0.00034794,4]
[319437763,1710736353176,-788.73,0.00034794,4]
[319437764,1710736353185,-500.0,0.00034794,4]
[319437765,1710736353195,-500.0,0.00034794,4]
[319437766,1710736353205,-2115.38,0.00034794,4]
[319437767,1710736353214,-500.0,0.00034794,4]
[319437768,1710736353223,-1520.72,0.00034794,4]
[319437769,1710736353233,-1607.09,0.00034794,4]
[319437770,1710736353242,-500.0,0.00034794,4]
[319437771,1710736353251,-1832.55,0.00034794,4]
[319437772,1710736353260,-824.57,0.00034794,4]
[319437773,1710736353269,-1581.71,0.00034794,4]
[319437774,1710736353279,-583.42,0.00034794,4]
[319437775,1710736353288,-1212.73,0.00034794,4]
[319437776,1710736353298,-1404.3,0.00034794,4]
[319437777,1710736353308,-24025.87,0.00034794,4]
[319437778,1710736353317,-439.51591348,0.00034794,4]
[319437779,1710736353327,-2546.72,0.00034794,4]
[319437780,1710736353336,-2851.25,0.00034794,4]
[319437781,1710736353345,-2287.3,0.00034794,4]
[319437782,1710736353355,-647.58,0.00034794,4]
[319437783,1710736353364,-500.0,0.00034794,4]
[319437784,1710736353374,-585.33,0.00034794,4]
[319437785,1710736353383,-1053.54,0.00034794,4]
[319437786,1710736353392,-1503.64,0.00034794,4]
[319437787,1710736353402,-1183.08,0.00034794,4]
[319437788,1710736353411,-554.14,0.00034794,4]
[319437789,1710736353420,-2122.6,0.00034794,4]
[319437790,1710736353429,-500.0,0.00034794,4]
[319437791,1710736353438,-513.85,0.00034794,4]
[319437792,1710736353448,-1088.26,0.00034794,4]
[319437793,1710736353458,-1355.29,0.00034794,4]
[319437794,1710736353467,-1081.54,0.00034794,4]
[319437795,1710736353476,-602.31,0.00034794,4]
[319437796,1710736353486,-16800.01,0.00034794,4]
[319437797,1710736353496,-732.67,0.00034794,4]
[319437798,1710736353505,-500.0,0.00034794,4]
[319437799,1710736353514,-742.96,0.00034794,4]
[319437800,1710736353523,-875.28,0.00034794,4]
[319437801,1710736353533,-1382.05,0.00034794,4]
[319437802,1710736353543,-9617.26,0.00034794,4]
[319437803,1710736353552,-632.75,0.00034794,4]
[319437804,1710736353562,-523.3,0.00034794,4]
[319437805,1710736353571,-9955.07,0.00034794,4]
[319437806,1710736353586,-1242.28,0.00034794,4]
[319437807,1710736353595,-815.39,0.00034794,4]
[319437808,1710736353604,-606.68,0.00034794,4]
[319437809,1710736353614,-2827.35,0.00034794,4]
[319437810,1710736353624,-584.4,0.00034794,4]
[319437811,1710736353633,-2844.9,0.00034794,4]
[319437812,1710736353642,-918.65,0.00034794,4]
[319437813,1710736353651,-2329.09,0.00034794,4]
[319437814,1710736353661,-2657.41,0.00034794,4]
[319437815,1710736353670,-608.45838183,0.00034794,4]
[319437816,1710736353680,-5715.22,0.00034794,4]
[319437817,1710736353689,-1178.39,0.00034794,4]
[319437818,1710736353699,-1030.3,0.00034794,4]
[319437819,1710736353708,-7010.64,0.00034794,4]
[319437820,1710736353717,-795.31,0.00034794,4]
[319437821,1710736353727,-647.9,0.00034794,4]
[319437822,1710736353736,-756.1,0.00034794,4]
[319437823,1710736353745,-500.0,0.00034794,4]
[319437824,1710736353755,-1213.71,0.00034794,4]
[319437825,1710736353768,-3112.49,0.00034794,4]
[319437826,1710736353777,-16099.23,0.00034794,4]
[319437827,1710736353786,-1067.48,0.00034794,4]
[319437828,1710736353796,-1085.99,0.00034794,4]
[319437829,1710736353807,-500.0,0.00034794,4]
[319437830,1710736353816,-7279.53,0.00034794,4]
[319437831,1710736353825,-500.0,0.00034794,4]
[319437832,1710736353834,-3639.26,0.00034794,4]
[319437833,1710736353845,-4937.08,0.00034794,4]
[319437834,1710736353856,-14656.9,0.00034794,4]
[319437835,1710736353866,-500.0,0.00034794,4]
[319437836,1710736353875,-1119.07,0.00034794,4]
[319437837,1710736353885,-714.97,0.00034794,4]
[319437838,1710736353895,-3778.15,0.00034794,4]
[319437839,1710736353905,-915.55,0.00034794,4]
[319437840,1710736353915,-500.0,0.00034794,4]
[319437841,1710736353924,-2442.22,0.00034794,4]
[319437842,1710736353934,-2039.35,0.00034794,4]
[319437843,1710736353943,-1590.31,0.00034794,4]
[319437844,1710736353953,-1039.93980627,0.00034794,4]
[319437845,1710736354415,-1038.82019373,0.00034794,4]
[319437846,1710736354425,-765.76,0.00034794,4]
[319437847,1710736354434,-2024.35,0.00034794,4]
[319437848,1710736354444,-567.96524825,0.00034794,4]
[319437849,1710736354453,-1116.0,0.00034796,20]
[319437850,1710736354463,-151.031811,0.00034798,5]
[319437851,1710736354473,-2964.18822726,0.000348,2]
[319437852,1710736354499,-1160.93544521,0.000348,2]
[319437853,1710736354509,-399.66789159,0.000348,2]
[319437854,1710736354544,-168.2,0.0003,2]